Cogmind - Beta 13 @@@ ROGUE MODE // 2024.04.06 @ 14:44:21 Player: darki Result: Destroyed by A-27 Freighter with PD Laser Performance ------------- Evolutions (3) 1500 Regions Visited (5) 1000 Robots Destroyed (169) 845 Value Destroyed (4294) 4294 Prototype IDs (17) 340 Alien Tech Used (0) 0 Bonus (1436) 1436 TOTAL SCORE: 9415 Bonus ------- High Alert Combat Kills 2180 Follower Combat Kills 204 Entered Garrisons 200 Friendly Fire -1148 Cogmind --------- Core Integrity 0/700 Matter 38/300 Energy 54/100 System Corruption 3% Temperature Cool (15) Movement Core (50) Location -7/Garrison Parts ------- > --- POWER (1) -------- (None) > --- PROPULSION (3) --- (None) > --- UTILITY (3) ------ (None) > --- WEAPON (6) ------- Mini Grenade Launcher > --- INVENTORY (5) ---- Enhanced Autogun Peak State ------------ > --- POWER ------------ Improved Deuterium Engine > --- PROPULSION ------- Carbon-fiber Leg Carbon-fiber Leg Arachnoskeleton > --- UTILITY ---------- High-capacity Storage Unit Improved Medium Armor Plating Long-range Tractor Beam > --- WEAPON ----------- Advanced Beam Cannon Advanced Beam Cannon Missile Launcher Missile Launcher Missile Launcher Missile Launcher > --- INVENTORY -------- Improved Ion Engine Improved Ion Engine Improved Heat Sink Small Storage Unit Compact Battery Light Armor Plating Medium Armor Plating Medium Armor Plating Medium Armor Plating Hacking Suite V3-11A's Pendant Improved EM Shotgun Improved EM Shotgun Medium Laser Enhanced Autogun Light Cannon Advanced EMP Blaster Mini Grenade Launcher Mini Grenade Launcher Improved Grenade Launcher [Rating: 61] Favorites ----------- Power Ion Engine Engine Ion Engine Propulsion Wheel Treads Light Treads Leg Carbon-fiber Leg Wheel Wheel Utility High-capacity Storage Unit Device V3-11A's Pendant Storage High-capacity Storage Unit Hackware Hacking Suite Protection Medium Armor Plating Weapon Missile Launcher Energy Gun Subdweller Laser Energy Cannon Advanced Beam Cannon Ballistic Gun Subdweller Machine Gun Ballistic Cannon Improved Light Cannon Launcher Missile Launcher Special Weapon Multitool Build | -11 -10 -10 -8 -7 -7 ------- Run | Yrd Mat Sub Mat Fac Gar Slots Evolved 6 | . . . 4 2 . Power . | . . . . . . Propulsion 1 | . . . 1 . . Utility 1 | . . . 1 . . Weapon 4 | . . . 2 2 . Parts Attached 95 | . 22 13 40 12 8 Power 3 | . 1 . 1 1 . Engine 3 | . 1 . 1 1 . Core . | . . . . . . Reactor . | . . . . . . Propulsion 12 | . 6 2 4 . . Treads 2 | . 2 . . . . Leg 5 | . 1 . 4 . . Wheel 5 | . 3 2 . . . Hover . | . . . . . . Flight . | . . . . . . Utility 18 | . 5 1 6 2 4 Device 6 | . 2 1 2 1 . Storage 2 | . 2 . . . . Processor . | . . . . . . Hackware 1 | . . . . . 1 Protection 9 | . 1 . 4 1 3 Artifact . | . . . . . . Weapon 62 | . 10 10 29 9 4 Energy Gun 9 | . 2 3 3 . 1 Energy Cannon 9 | . . . 8 1 . Ballistic Gun 5 | . . 1 3 . 1 Ballistic Cannon 11 | . 5 2 4 . . Launcher 26 | . 3 2 11 8 2 Special Weapon 2 | . . 2 . . . Impact Weapon . | . . . . . . Slashing Weapon . | . . . . . . Piercing Weapon . | . . . . . . Special Melee Weapon . | . . . . . . Unidentified Prototypes 7 | . 1 1 4 1 . Corrupted Parts 1 | . . . 1 . . System Corruption 3 | . . . 3 . . Parts Lost 30 | . 3 5 4 3 15 Power 3 | . 1 . 1 . 1 Propulsion 6 | . 1 2 . 1 2 Utility 8 | . 1 . 2 . 5 Weapon 13 | . . 3 1 2 7 Highest Loss Streak 10 | . 3 1 2 2 10 To Critical Strikes 1 | . . . . . 1 Average Slot Usage (%) 87 | . 91 96 76 84 55 Engine 10 | . 10 14 6 6 6 Treads 3 | . 21 . . . . Leg 7 | . 1 . 18 18 6 Wheel 11 | . 3 27 . . . Device 8 | . . 14 7 6 5 Storage 10 | . 14 14 7 6 6 Protection 4 | . 9 . 6 6 6 Energy Gun 1 | . 3 1 1 . . Energy Cannon 2 | . . . 5 10 . Ballistic Cannon 6 | . 11 8 3 . . Launcher 16 | . 11 13 17 28 21 Naked Turns 8 | . . . . . 8 Heaviest Build 92 | 13 48 56 79 92 89 Greatest Support 80 | 20 40 30 80 80 65 Greatest Overweight (x) 5 | . 4 5 1 1 1 Average Overweight (x) 1 | . . 1 . . . Largest Inventory Capacity 20 | . 20 20 20 20 20 Average Capacity 19 | . 14 20 20 20 18 Most Carried 20 | . 14 18 20 20 20 Average Carried 14 | . 10 12 17 19 17 Final Capacity 20 | 8 20 20 20 20 5 Final Carried 20 | 6 12 15 20 20 1 Class Distribution -------------------- 55% | Mutant 17% | Scavenger-Bomber 12% | Executioner 10% | Bomber 4% | Scavenger-Mutant Dominant Class ---------------- Mutant | -10/Materials Mutant | -10/Subcaves Scavenger-Bomber | -8/Materials Executioner | -7/Factory Bomber | -7/Garrison Resources | -11 -10 -10 -8 -7 -7 ----------- Run | Yrd Mat Sub Mat Fac Gar Matter Collected 3908 | 167 557 823 1432 791 138 Remotely 791 | . . . . 791 . Salvage Created 3881 | . 535 214 1852 965 315 Parts 287 | . 42 18 146 65 16 Haulers Intercepted 12 | . 2 . 6 4 . Recyclers Shooed 7 | . . . 1 6 . Parts Field Recycled . | . . . . . . Retrieved Matter . | . . . . . . Parts Self-Destructed 16 | . . 16 . . . Prevented . | . . . . . . Kills | -11 -10 -10 -8 -7 -7 ------- Run | Yrd Mat Sub Mat Fac Gar Combat Hostiles Destroyed 91 | . 10 3 49 18 11 Guns 3 | . . . 3 . . Cannons 17 | . 5 . 11 1 . AOE 69 | . 5 3 35 17 9 Classes Destroyed 19 | . 9 4 4 2 . Worker 27 | . 6 . 11 10 . Builder 19 | . 1 . 9 9 . Tunneler 3 | . 1 . 1 1 . Hauler 12 | . 2 . 6 4 . Recycler 8 | . 1 . 1 6 . Mechanic 1 | . . . 1 . . Operator 5 | . 3 . 2 . . Turret 2 | . . 2 . . . Watcher 4 | . 2 . 2 . . Swarmer 8 | . 3 1 1 . 3 Grunt 58 | . 7 1 33 13 4 Brawler 5 | . . . 5 . . Duelist 2 | . . . 2 . . Protector 3 | . . . 3 . . Sentry 10 | . . 1 5 2 2 Hunter 4 | . . . . 2 2 Programmer 1 | . . . . 1 . Artisan 2 | . . 2 . . . Subdweller 5 | . . 3 2 . . Best Kill Streak 15 | . 4 2 12 15 7 Combat Bots Only 8 | . 3 2 8 8 7 Max Kills in Single Turn 9 | . 2 2 6 9 5 Gunslinging . | . . . . . . Exploded 5 | . 2 1 4 3 5 Melee . | . . . . . . Uniques/NPCs Destroyed . | . . . . . . Combat | -11 -10 -10 -8 -7 -7 -------- Run | Yrd Mat Sub Mat Fac Gar Hostile Shots Fired 538 | . 42 34 106 109 247 Missed 213 | . 8 16 33 47 109 Damage Taken 5129 | . 608 517 1257 1023 1724 Core 1032 | . 122 106 101 75 628 Absorbed by Shields 85 | . . . . . 85 Core Remaining (%) 63 | 100 . 8 81 . . Volleys Fired 326 | . 65 92 82 70 17 Largest 5 | . 2 2 4 5 2 Hottest 172 | . 78 100 168 172 90 Shots Fired 525 | . 93 116 184 108 24 Gun 110 | . 35 20 51 . 4 Cannon 225 | . 42 55 65 63 . Launcher 182 | . 16 33 68 45 20 Special 8 | . . 8 . . . Kinetic 214 | . 42 66 102 . 4 Thermal 151 | . 35 28 25 63 . Explosive 147 | . 16 22 49 45 15 Electromagnetic 13 | . . . 8 . 5 Robot Hit Streak 26 | . 7 26 8 12 7 Robot Miss Streak 6 | . 6 3 6 3 4 Penetration Max . | . . . . . . Secondary Targets . | . . . . . . Shots Hit Robots 239 | . 47 58 71 49 14 Core Hits 330 | . 33 26 145 97 29 Critical Kills . | . . . . . . Critical Parts Destroyed . | . . . . . . Critical Strikes 12 | . 4 4 4 . . Burn 3 | . 2 . 1 . . Blast 9 | . 2 4 3 . . Melee Attacks . | . . . . . . Impact . | . . . . . . Slashing . | . . . . . . Piercing . | . . . . . . Sneak Attacks . | . . . . . . Combat Hostiles . | . . . . . . Follow-up Attacks . | . . . . . . Damage Inflicted 16795 | . 1336 1752 7887 4434 1386 Guns 1112 | . 288 307 481 . 36 Cannons 2554 | . 451 509 694 900 . Explosions 13093 | . 597 900 6712 3534 1350 Melee . | . . . . . . Ramming . | . . . . . . Kinetic 3656 | . 451 949 2220 . 36 Thermal 2085 | . 288 343 414 1040 . Explosive 10207 | . 597 460 4602 3394 1154 Electromagnetic 847 | . . . 651 . 196 Impact . | . . . . . . Slashing . | . . . . . . Piercing . | . . . . . . Highest Corruption 4 | . . . 4 2 3 Average Corruption 3 | . . . 3 2 3 Corruption Purged . | . . . . . . Corruption Blocked . | . . . . . . Effects 41 | . . . 27 3 11 Message Errors 17 | . . . 10 2 5 Matter Fused 6 | . . . 6 . . Heat Flow Errors 4 | . . . 2 1 1 Energy Discharges 5 | . . . 3 . 2 Parts Rejected 1 | . . . 1 . . Data Loss (minor) 3 | . . . 3 . . Data Loss (major) 3 | . . . 1 . 2 Misfires 1 | . . . 1 . . Alerts 1 | . . . . . 1 Overload Shots . | . . . . . . Overflow Damage 351 | . 6 23 116 164 42 Projectiles 17 | . . 13 4 . . Explosions 334 | . 6 10 112 164 42 Melee . | . . . . . . Knockbacks 9 | . 3 2 4 . . Impact . | . . . . . . Kinetic 8 | . 2 2 4 . . Secondary 1 | . 1 . . . . Self-Inflicted Damage 1074 | . 184 183 112 160 435 Shots 44 | . 6 7 5 7 19 Rammed . | . . . . . . Targets Rammed . | . . . . . . Kicked . | . . . . . . Crushed . | . . . . . . Highest Temperature 453 | . 415 . 453 304 177 Average Temperature 112 | . 112 . 146 94 42 Received Heat Transfer 1662 | . 234 96 621 228 483 Effects 20 | . 6 . 9 5 . Shutdowns 1 | . 1 . . . . Energy Bleed 3 | . 2 . 1 . . Interference 10 | . . . 5 5 . Matter Decay 1 | . 1 . . . . Short Circuit 3 | . 2 . 1 . . Damage (major) 2 | . . . 2 . . Siege Activations . | . . . . . . Robots Corrupted 2 | . . . . . 2 Combat Hostiles 2 | . . . . . 2 Parts Fried 2 | . . . . . 2 Impact Corruptions . | . . . . . . Robots Melted . | . . . . . . Combat Hostiles . | . . . . . . Parts Melted 2 | . 2 . . . . Heat Transferred 4217 | . 999 708 832 1678 . Parts Sabotaged . | . . . . . . Parts Stolen . | . . . . . . Parts Stripped . | . . . . . . Power Chain Reactions 5 | . . . 5 . . Alert | -11 -10 -10 -8 -7 -7 ------- Run | Yrd Mat Sub Mat Fac Gar Peak Influence 1841 | . 288 . 1841 1445 1176 Initial 1011 | . . . 170 799 1011 Average 872 | . 155 . 1286 936 1087 Maximum Alert Level 5 | . 1 . 5 4 4 Low Security (%) 18 | . 59 . 5 . . Level 1 14 | . 40 . 7 . . Level 2 2 | . . . 6 . . Level 3 30 | . . . 11 82 83 Level 4 19 | . . . 33 17 16 Level 5 14 | . . . 35 . . High Security . | . . . . . . Max Security . | . . . . . . Sterilizations 1 | . . . 1 . . Squads Dispatched 21 | . 2 . 11 8 . Investigation 4 | . 2 . 1 1 . Extermination 2 | . . . . 2 . Reinforcement 8 | . . . 5 3 . Assault 5 | . . . 5 . . Garrison 2 | . . . . 2 . Intercept . | . . . . . . Searches Triggered . | . . . . . . Construction Impeded 4 | . . . 3 1 . Haulers Reinforced 2 | . . . . 2 . Active Scanning Responses . | . . . . . . Cargo Convoy Interrupts . | . . . . . . Stealth | -11 -10 -10 -8 -7 -7 --------- Run | Yrd Mat Sub Mat Fac Gar Distress Signals 8 | . . . 7 1 . Communications Jammed . | . . . . . . Distress Signals . | . . . . . . Times Spotted 165 | . 23 28 71 27 16 Peak Tracking Total 7 | . 5 5 6 7 5 Tactical Retreats 5 | . . 4 1 . . Traps | -11 -10 -10 -8 -7 -7 ------- Run | Yrd Mat Sub Mat Fac Gar Traps Triggered 8 | . 1 2 2 1 2 Indirectly . | . . . . . . Trap Hack Attempts . | . . . . . . Triggered . | . . . . . . Disarmed . | . . . . . . Reprogrammed . | . . . . . . Reused 1 | . . . 1 . . Traps Extracted . | . . . . . . Installed 1 | . . . 1 . . Triggered 1 | . . . 1 . . Most Traps Carried 1 | . . 1 1 . . Machines | -11 -10 -10 -8 -7 -7 ---------- Run | Yrd Mat Sub Mat Fac Gar Machines Disabled 26 | . 6 5 7 8 . Max in Single Turn 6 | . 3 1 2 6 . Garrison Access 1 | . . . 1 . . Machines Repaired . | . . . . . . Machines Dismantled . | . . . . . . Machines Sabotaged . | . . . . . . Overloaded Fab Kills . | . . . . . . Hacking | -11 -10 -10 -8 -7 -7 --------- Run | Yrd Mat Sub Mat Fac Gar Machines Accessed 8 | . 2 2 2 2 . Terminals 2 | . 1 . 1 . . Fabricators 1 | . . . . 1 . Repair Stations . | . . . . . . Recycling Units 1 | . 1 . . . . Scanalyzers . | . . . . . . Garrison Access 2 | . . . 1 1 . Total Hacks 26 | . 6 11 6 3 . Successful 18 | . 5 11 1 1 . Failed 8 | . 1 . 5 2 . Catastrophic 1 | . . . 1 . . Database Lockouts . | . . . . . . Manual 10 | . 5 . 3 2 . Terminals 8 | . 5 . 3 . . Fabricators 2 | . . . . 2 . Repair Stations . | . . . . . . Recycling Units 1 | . 1 . . . . Scanalyzers . | . . . . . . Garrison Access 4 | . . . 3 1 . Terminal Hacks 14 | . 3 11 . . . Record 10 | . . 10 . . . Robot Analysis 3 | . 3 . . . . Derelict Proto ID Bank 1 | . . 1 . . . Fabricator Hacks . | . . . . . . Repair Station Hacks . | . . . . . . Recycling Unit Hacks . | . . . . . . Scanalyzer . | . . . . . . Garrison Access Hacks 1 | . . . . 1 . Unlock Access 1 | . . . . 1 . Unauthorized Hacks 3 | . 2 . 1 . . Terminals 2 | . 1 . 1 . . Botnet 1 | . 1 . . . . Disrupt 1 | . . . 1 . . Fabricators . | . . . . . . Repair Stations . | . . . . . . Recycling Units 1 | . 1 . . . . Tunnel 1 | . 1 . . . . Scanalyzers . | . . . . . . Garrison Access . | . . . . . . Data Cores Recovered 2 | . 2 . . . . Used . | . . . . . . Hacking Detections 5 | . 1 . 2 2 . Full Trace Events 2 | . . . 1 1 . Feedback Events . | . . . . . . Feedback Blocked . | . . . . . . Robot Schematics Acquired . | . . . . . . Robots Built . | . . . . . . Authchips . | . . . . . . Time . | . . . . . . Total Robot Build Rating . | . . . . . . Part Schematics Acquired . | . . . . . . Parts Built . | . . . . . . Authchips . | . . . . . . Time . | . . . . . . Total Part Build Rating . | . . . . . . Parts Repaired . | . . . . . . Time . | . . . . . . Parts Recycled . | . . . . . . Recycled Matter . | . . . . . . Retrieved Matter . | . . . . . . Retrieved Components . | . . . . . . Parts Scanalyzed . | . . . . . . Part Schematics Acquired . | . . . . . . Parts Damaged . | . . . . . . Bothacking | -11 -10 -10 -8 -7 -7 ------------ Run | Yrd Mat Sub Mat Fac Gar Used RIF Installer . | . . . . . . Robots Hacked . | . . . . . . Non-combat . | . . . . . . Combat . | . . . . . . Robot Hacks Applied . | . . . . . . Relay Couplers Released 2 | . . . 2 . . Machine Destruction 2 | . . . 2 . . Fabnet Peak Effective % . | . . . . . . Robots Rewired . | . . . . . . Allies Hacked . | . . . . . . Hacks Repelled . | . . . . . . Allies | -11 -10 -10 -8 -7 -7 -------- Run | Yrd Mat Sub Mat Fac Gar Total Allies 17 | . . 17 . . . Largest Group 7 | . . 7 6 . . Highest-Rated Group 133 | . . 133 114 . . Highest-Rated Ally 19 | . . 19 19 . . Total Orders . | . . . . . . Ally Attacks 83 | . . 48 35 . . Total Damage 1341 | . . 832 509 . . Kills 19 | . . 10 9 . . Allies Corrupted . | . . . . . . Allies Melted . | . . . . . . Intel | -11 -10 -10 -8 -7 -7 ------- Run | Yrd Mat Sub Mat Fac Gar Robot Analysis Total 3 | . 3 . . . . Derelict Logs Recovered 2 | . . 2 . . . Drone Launches . | . . . . . . Drone Recoveries . | . . . . . . Exploration | -11 -10 -10 -8 -7 -7 ------------- Run | Yrd Mat Sub Mat Fac Gar Turns Passed 7911 | . 1302 3242 1895 1092 380 Spaces Moved 4768 | 1 662 2626 822 463 194 Core 33 | . . . . . 33 Treads 513 | . 513 . . . . Legs 1487 | 1 40 . 822 463 161 Wheels 2735 | . 109 2626 . . . Hover . | . . . . . . Flight . | . . . . . . Fastest Speed 50 | 120 110 107 110 110 50 Average Speed 128 | 120 159 110 126 175 160 Slowest Speed 400 | 120 400 155 185 186 185 Overloaded Moves . | . . . . . . Propulsion Burnouts . | . . . . . . Robots Hopped . | . . . . . . Cave-ins Triggered . | . . . . . . Exploration Rate (%) 45 | 2 83 95 47 16 30 Regions Visited 5 Branch Regions 1 Pre-discovered Areas 2 | . 1 1 . . . Known Exits Taken 1 | . . . . 1 . Unknown Exits Taken 4 | 1 1 1 1 . . Scrap Searched 10 | . . 10 . . . Spaces Dug 146 | . . 146 . . . Terrain Destroyed 1305 | . 179 278 416 308 124 Melee . | . . . . . . Projectile 5 | . . . 1 4 . AOE 1300 | . 179 278 415 304 124 Terrain Rammed . | . . . . . . Walls Destroyed . | . . . . . . Machines Disabled . | . . . . . . Actions | -11 -10 -10 -8 -7 -7 --------- Run | Yrd Mat Sub Mat Fac Gar Total 6050 | . 817 2830 1528 640 235 Wait 774 | . 39 88 549 92 6 Move 4763 | . 661 2625 821 462 194 Hop . | . . . . . . Pick Up 34 | . 12 6 15 . 1 Fast Attach 31 | . 10 4 14 3 . Attach 31 | . 4 6 9 4 8 Detach 17 | . 4 2 8 3 . Swap 33 | . 8 3 17 5 . Drop 35 | . 14 4 12 1 4 Fire 326 | . 65 92 82 70 17 Melee . | . . . . . . Ram . | . . . . . . Kick . | . . . . . . Crush . | . . . . . . Escape Stasis 5 | . . . . . 5 Rewire . | . . . . . . Trap 1 | . . . 1 . . Miscellaneous . | . . . . . . Route ------- -11/Scrapyard -10/Materials (discovered 4 exits: [*Mat x2] / [*Min] / *Sub) -10/Subcaves (discovered 3 exits: *Mat x2 / [*Rec]) -8/Materials -7/Factory (discovered 2 exits: [*Low] / Gar) -7/Garrison History --------- Turn | Location | Event 1 | -11/Scrapyard | Discovered new exit (range 0) 1 | -11/Scrapyard | Entered Materials 300 | -10/Materials | Build established: Mutant 518 | -10/Materials | Discovered new exit (range 11) 673 | -10/Materials | Discovered new exit (range 15) 814 | -10/Materials | Discovered new exit (range 6) 1015 | -10/Materials | Lost 3 parts (1p1n1u) 1289 | -10/Materials | Discovered new exit (range 10) 1303 | -10/Materials | Entered Subcaves 1318 | -10/Subcaves | Learned Materials stockpile data 1323 | -10/Subcaves | Shifting Twisted Machinery released Battle Cannon 1326 | -10/Subcaves | Shifting Twisted Machinery released Humpback 1432 | -10/Subcaves | Discovered new exit (range 12) 1513 | -10/Subcaves | Core integrity fell below 50% 1527 | -10/Subcaves | Visited triangular shrine 1534 | -10/Subcaves | Found Prototype Device 1534 | -10/Subcaves | Identified V3-11A's Pendant 1539 | -10/Subcaves | Befriended Subdweller 1584 | -10/Subcaves | Befriended Subdweller 1594 | -10/Subcaves | Befriended Subdweller 1653 | -10/Subcaves | Discovered new exit (range 10) 1814 | -10/Subcaves | Befriended Subdweller 1814 | -10/Subcaves | Befriended Subdweller 1987 | -10/Subcaves | Ambushed by Subdwellers from Twisted Machinery 1989 | -10/Subcaves | Befriended Subdweller 1989 | -10/Subcaves | Befriended Subdweller 1989 | -10/Subcaves | Befriended Subdweller 2148 | -10/Subcaves | Shifting Twisted Machinery released Battle Rifle 2262 | -10/Subcaves | Shifting Twisted Machinery released Battle Cannon 2272 | -10/Subcaves | Visited Clippyterm 2275 | -10/Subcaves | Learned Factory emergency access door positions 2453 | -10/Subcaves | Shifting Twisted Machinery released Mak. System Restoration Module 2461 | -10/Subcaves | Shifting Twisted Machinery released Sub. Shrapnel Launcher 2479 | -10/Subcaves | Core integrity fell below 20% 2677 | -10/Subcaves | Lost 7 allies 2713 | -10/Subcaves | Discovered new exit (range 16) 2720 | -10/Subcaves | Approached by friendly Subdweller 2989 | -10/Subcaves | Befriended Subdweller 2994 | -10/Subcaves | Befriended Subdweller 3042 | -10/Subcaves | A swath of the cavern ceiling suddenly collapsed 3147 | -10/Subcaves | Ambushed by Subdweller buried in earth 3149 | -10/Subcaves | Befriended Subdweller 3280 | -10/Subcaves | A swath of the cavern ceiling suddenly collapsed 3504 | -10/Subcaves | Befriended Subdweller 3504 | -10/Subcaves | Befriended Subdweller 3916 | -10/Subcaves | Learned location of Mines (-10) 3933 | -10/Subcaves | Visited 4L-MR0's lab 3946 | -10/Subcaves | Found Arachnoskeleton 4075 | -10/Subcaves | Ambushed by Subdweller buried in earth 4084 | -10/Subcaves | Befriended Subdweller 4183 | -10/Subcaves | Ambushed by Subdweller buried in earth 4184 | -10/Subcaves | Befriended Subdweller 4192 | -10/Subcaves | Ambushed by Subdweller buried in earth 4194 | -10/Subcaves | Befriended Subdweller 4545 | -10/Subcaves | Entered Materials 4545 | -8/Materials | Accompanied by 6 allies 4545 | -8/Materials | Evolved 4 slots: Propulsion x1, Utility x1, Weapon x2 4547 | -8/Materials | Attached Arachnoskeleton, gained temporary slots: Propulsion x3 4819 | -8/Materials | Lost 3 allies 4894 | -8/Materials | Build established: Bomber 4945 | -8/Materials | First assault squad dispatched 4979 | -8/Materials | Destroyed 8 combat bots 5134 | -8/Materials | Discovered new exit (range 15) 5535 | -8/Materials | Build established: Scavenger-Bomber 5792 | -8/Materials | Sterilization system engaged 5792 | -8/Materials | Non-combat units ordered to evacuate 5892 | -8/Materials | Combat units ordered to evacuate 6092 | -8/Materials | Ambient heat levels rising (+10) 6242 | -8/Materials | Ambient heat levels rising (+10) 6392 | -8/Materials | Ambient heat levels rising (+10) 6440 | -8/Materials | Entered Factory 6440 | -7/Factory | Evolved 2 slots: Weapon x2 6571 | -7/Factory | Discovered new exit (range 8) 6783 | -7/Factory | Build established: Executioner 7269 | -7/Factory | Destroyed 8 combat bots 7334 | -7/Factory | Garrison activated, responded to threat 7402 | -7/Factory | Found Prototype Launcher 7402 | -7/Factory | Identified Rocket Array 7406 | -7/Factory | Found Rocket Array 7422 | -7/Factory | Identified exit to Garrison 7481 | -7/Factory | Garrison activated, responded to threat 7532 | -7/Factory | Entered Garrison 7554 | -7/Garrison | Triggered checkpoint 7593 | -7/Garrison | Lost 5 parts (1n1u3w) 7842 | -7/Garrison | Triggered checkpoint 7851 | -7/Garrison | Triggered checkpoint 7859 | -7/Garrison | Triggered checkpoint 7892 | -7/Garrison | Destroyed 7 combat bots 7892 | -7/Garrison | Triggered checkpoint 7903 | -7/Garrison | Core integrity fell below 50% 7910 | -7/Garrison | Core integrity fell below 20% 7912 | -7/Garrison | Destroyed by A-27 Freighter with PD Laser Last Messages --------------- corrupted. 07871_ Imp. Heat Sink fried. 07871_ Gatling Laser fried. 07871_ Dropped Hcp. Storage Unit. 07871_ Dropped Lgt. Armor Plating. 07875_ Acquired 1 matter. 07880_ Adv. EMP Blaster destroyed. 07881_ Acquired 62 matter. 07882_ The unstable cave ceiling collapses. 07883_ Acquired 75 matter. 07888_ The unstable cave ceiling collapses. 07888_ Imp. Ion Engine crushed. 07892_ Beams of light sweep through the air. An alarm sounds. 07899_ Med. Armor Plating destroyed. 07901_ Dropped Imp. EM Shotgun. 07902_ Dropped Enh. Autogun. 07903_ Hacking Suite destroyed. 07903_ Acquired Enh. Autogun. 07912_ System corrupted: Energy discharge (-24). Map ----- +----------------------------------------------------+ | ??????????????????????????????????# #???????????? | | ??????????????????????????????????# #???????????? | | ??????????????????????????????????# #???????????? | | ??????????????????????????????????# #???????????? | | ??????????????????????????????????# #???????????? | | ??????????????????????????????????# #???????????? | | ??????????????????????????????????# #???????????? | | ??????????????????????????????????# #???????????? | | ??????????????????????????????????# #???????????? | | ??????????????????????????????????# #???????????? | | ??????????????????????????????????# #???????????? | | ??????????????????????????????????# #???????????? | | ??????????????????????????????????# #???????????? | | ??????????????????????????????????# #???????????? | | ??????????????????????????????????################ | | ????????????????????????####??????# ^^ | | ???????????????????????? #??????# ^ | | ???????????????????????? #??????# ############# | | ????????????????????????# #??????# !#???????????? | | ????????????????????????# #??????#][#???????????? | | ????????????????????????# #??????#!!#???????????? | | ????????????????????????# #?????##!!#???????????? | | ????????????# ?????????# ?#######]!#???????????? | | ????????????# ?????# ?# #[]!#???????????? | | ????????????# ## ;## # [*##??????????? | | ????????????# @ = #??????????? | | ????????????# A #??????????? | | ?????????? #??????????? | | ???????????#### Y # #??????????? | | ??????????????# ### g g ###????????? | | ??????????????######?? #????????? | | ?????????????????????# Y [ #????????? | | ?????????????????????# !=#######??? | | ?????????????????????# [ * #?? | | ?????????????????????### # # ######## #?? | | ???????????????????????# ## # #??????????? | | ??????????????????????? ??????????? | | ?????????????????????? ?????????? | | ?????????????????????? ##?????????? | | ???????????????????????###### ######??????????? | | ????????????????????????????# ????????????????? | | ????????????????????????????####?????????????????? | | ?????????????????????????????????????????????????? | | ?????????????????????????????????????????????????? | | ?????????????????????????????????????????????????? | | ?????????????????????????????????????????????????? | | ?????????????????????????????????????????????????? | | ?????????????????????????????????????????????????? | | ?????????????????????????????????????????????????? | | ?????????????????????????????????????????????????? | +----------------------------------------------------+ Best States ------------- Heat Dissipation 48 Coolant Potential 50 Energy Generation 16 Energy Capacity 290 Matter Stores 300 Matter Capacity 300 Sight Range 16 Terrain Scan Density 10 Armor Coverage 225 Evasion (%) 55 Recoil Reduction 2 Item Schematics ----------------- None Robot Schematics ------------------ None Fabricated ------------ Nothing Alien Tech Used ----------------- None Achievements -------------- None Challenges ------------ None Game ------ Seed IntegratedArchitectPit Manual? 0 Play Time 00:57:23 Cumulative 206.6 hours Start 2024.04.06 @ 13:48:07 End 2024.04.06 @ 14:44:21 Sessions 1 Manual Loads 0 Difficulty Rogue Special Mode None Game No. 208 Rogue 208 Adventurer 0 Explorer 0 Win Type - Total 4 Types 3/0/0/1/0/0/0/0/0 Lore% 66 Gallery% 76 Achievement% 61 Wizard Run 0 Options --------- Layout 1 ASCII 0 Keyboard 0 Movement Numpad Keybinds 0 Fullscreen 2 Font 24/Smallcaps Map View 50x35 Zoom Use 0% Tactical HUD 1 Map Filters NONE Filters NONE Steam 1 RUN: 8042cbc8-fc1d-4a2e-917f-62726102f2ab